[Event "Titled Tuesday Blitz July 25 Late 2023"]
[White "Vargas, Mauricio"]
[Black "Alexikov, Alexander"]
[WhiteFideId "4404572"]
[BlackFideId "14103958"]
[WhiteElo "1882"]
[BlackElo "2214"]
[Result "0-1"]
[Round "7"]
[TimeControl "180+2"]
[Date "2023.07.25"]
[WhiteClock "0:00:00"]
[BlackClock "0:00:05"]
[Board "152"]

1. e4 {[%clk 0:02:44]}  c5 {[%clk 0:02:59]} 2. Nc3 {[%clk 0:02:42]}  d6 {[%clk 0:02:58]} 3. f4 {[%clk 0:02:43]}  Nc6 {[%clk 0:02:57]} 4. Nf3 {[%clk 0:02:44]}  g6 {[%clk 0:02:55]} 5. Bb5 {[%clk 0:02:44]}  Bd7 {[%clk 0:02:54]} 6. O-O {[%clk 0:02:41]}  Bg7 {[%clk 0:02:53]} 7. d3 {[%clk 0:02:41]}  a6 {[%clk 0:02:49]} 8. Bxc6 {[%clk 0:02:40]}  Bxc6 {[%clk 0:02:49]} 9. Bd2 {[%clk 0:02:39]}  e6 {[%clk 0:02:46]} 10. a3 {[%clk 0:02:36]}  Ne7 {[%clk 0:02:45]} 11. Rb1 {[%clk 0:02:36]}  a5 {[%clk 0:02:44]} 12. Ne2 {[%clk 0:02:28]}  d5 {[%clk 0:02:29]} 13. e5 {[%clk 0:02:24]}  d4 {[%clk 0:02:28]} 14. Ng3 {[%clk 0:02:20]}  O-O {[%clk 0:02:15]} 15. Ne4 {[%clk 0:02:19]}  Bxe4 {[%clk 0:02:09]} 16. dxe4 {[%clk 0:02:19]}  Qd7 {[%clk 0:01:48]} 17. Qe1 {[%clk 0:02:19]}  a4 {[%clk 0:01:41]} 18. Qh4 {[%clk 0:02:18]}  b5 {[%clk 0:01:29]} 19. f5 {[%clk 0:02:11]}  exf5 {[%clk 0:01:26]} 20. Bh6 {[%clk 0:02:08]}  f6 {[%clk 0:01:17]} 21. exf6 {[%clk 0:02:04]}  Bxf6 {[%clk 0:01:09]} 22. Qh3 {[%clk 0:01:47]}  Rfd8 {[%clk 0:00:53]} 23. e5 {[%clk 0:01:46]}  Bh8 {[%clk 0:00:49]} 24. Rbe1 {[%clk 0:01:39]}  Nd5 {[%clk 0:00:32]} 25. Ng5 {[%clk 0:01:32]}  Re8 {[%clk 0:00:28]} 26. e6 {[%clk 0:01:29]}  Qc7 {[%clk 0:00:26]} 27. Qf3 {[%clk 0:00:46]}  Rad8 {[%clk 0:00:23]} 28. Re2 {[%clk 0:00:38]}  Ne3 {[%clk 0:00:22]} 29. Rfe1 {[%clk 0:00:32]}  Rd6 {[%clk 0:00:21]} 30. Qg3 {[%clk 0:00:20]}  Qe7 {[%clk 0:00:19]} 31. Nf7 {[%clk 0:00:15]}  Rd5 {[%clk 0:00:15]} 32. Nxh8 {[%clk 0:00:13]}  Kxh8 {[%clk 0:00:14]} 33. Qf3 {[%clk 0:00:11]}  Qxe6 {[%clk 0:00:13]} 34. c3 {[%clk 0:00:09]}  Qe4 {[%clk 0:00:11]} 35. Qg3 {[%clk 0:00:07]}  Rde5 {[%clk 0:00:08]} 36. cxd4 {[%clk 0:00:07]}  cxd4 {[%clk 0:00:07]} 37. Bg5 {[%clk 0:00:06]}  R5e6 {[%clk 0:00:05]} 38. Qc7 {[%clk 0:00:00]}  Kg8 {[%clk 0:00:05]} 0-1


[Site "https://www.chess.com"]

[Event "Titled Tuesday Blitz July 25 Late 2023"]
[White "Carlsen, Magnus"]
[Black "Vachier-Lagrave, Maxime"]
[WhiteFideId "1503014"]
[BlackFideId "623539"]
[WhiteElo "3263"]
[BlackElo "3170"]
[Result "0-1"]
[Round "8"]
[TimeControl "180+2"]
[Date "2023.07.25"]
[WhiteClock "0:00:00"]
[BlackClock "0:00:07"]
[Board "1"]

1. e4 {[%clk 0:03:00]}  c6 {[%clk 0:02:57]} 2. Bc4 {[%clk 0:02:59]}  d5 {[%clk 0:02:57]} 3. Bb3 {[%clk 0:02:59]}  dxe4 {[%clk 0:02:56]} 4. Qh5 {[%clk 0:02:59]}  g6 {[%clk 0:02:51]} 5. Qh4 {[%clk 0:02:59]}  Nf6 {[%clk 0:02:51]} 6. Nc3 {[%clk 0:02:59]}  Bg7 {[%clk 0:02:51]} 7. f3 {[%clk 0:02:53]}  Nbd7 {[%clk 0:02:35]} 8. fxe4 {[%clk 0:02:47]}  Nc5 {[%clk 0:02:35]} 9. Nf3 {[%clk 0:02:43]}  O-O {[%clk 0:02:25]} 10. d3 {[%clk 0:02:24]}  h5 {[%clk 0:02:17]} 11. h3 {[%clk 0:02:13]}  e5 {[%clk 0:01:26]} 12. O-O {[%clk 0:02:00]}  Qd6 {[%clk 0:01:17]} 13. Bg5 {[%clk 0:01:58]}  Nxb3 {[%clk 0:01:08]} 14. axb3 {[%clk 0:01:58]}  Re8 {[%clk 0:01:09]} 15. Qf2 {[%clk 0:01:54]}  Nh7 {[%clk 0:01:05]} 16. Be3 {[%clk 0:01:53]}  a6 {[%clk 0:01:00]} 17. Na4 {[%clk 0:01:44]}  Be6 {[%clk 0:00:58]} 18. Nc5 {[%clk 0:01:44]}  Qc7 {[%clk 0:00:55]} 19. Nd2 {[%clk 0:01:41]}  f6 {[%clk 0:00:52]} 20. Nxe6 {[%clk 0:01:37]}  Rxe6 {[%clk 0:00:53]} 21. Qg3 {[%clk 0:01:31]}  Nf8 {[%clk 0:00:48]} 22. Nf3 {[%clk 0:01:32]}  c5 {[%clk 0:00:38]} 23. Rf2 {[%clk 0:01:28]}  Kh7 {[%clk 0:00:37]} 24. Raf1 {[%clk 0:01:28]}  b6 {[%clk 0:00:37]} 25. Qh4 {[%clk 0:01:23]}  Kg8 {[%clk 0:00:35]} 26. g4 {[%clk 0:01:21]}  hxg4 {[%clk 0:00:36]} 27. hxg4 {[%clk 0:01:22]}  g5 {[%clk 0:00:36]} 28. Qh5 {[%clk 0:01:19]}  Qd7 {[%clk 0:00:30]} 29. Rh2 {[%clk 0:00:48]}  Qe8 {[%clk 0:00:27]} 30. Qh3 {[%clk 0:00:48]}  a5 {[%clk 0:00:21]} 31. Nd2 {[%clk 0:00:45]}  a4 {[%clk 0:00:21]} 32. bxa4 {[%clk 0:00:46]}  Rxa4 {[%clk 0:00:21]} 33. Nb1 {[%clk 0:00:41]}  Ra2 {[%clk 0:00:18]} 34. c4 {[%clk 0:00:35]}  Ra1 {[%clk 0:00:18]} 35. Nc3 {[%clk 0:00:34]}  Rxf1+ {[%clk 0:00:18]} 36. Qxf1 {[%clk 0:00:35]}  Ng6 {[%clk 0:00:18]} 37. Qf5 {[%clk 0:00:33]}  Nh4 {[%clk 0:00:13]} 38. Qf1 {[%clk 0:00:31]}  Ng6 {[%clk 0:00:13]} 39. Nd5 {[%clk 0:00:28]}  Rd6 {[%clk 0:00:10]} 40. Qh3 {[%clk 0:00:23]}  Nf4 {[%clk 0:00:10]} 41. Qh7+ {[%clk 0:00:22]}  Kf8 {[%clk 0:00:10]} 42. Qf5 {[%clk 0:00:20]}  Qe6 {[%clk 0:00:09]} 43. Qxe6 {[%clk 0:00:14]}  Rxe6 {[%clk 0:00:08]} 44. b4 {[%clk 0:00:11]}  Nxd3 {[%clk 0:00:07]} 45. b5 {[%clk 0:00:12]}  Nf4 {[%clk 0:00:05]} 46. Ra2 {[%clk 0:00:11]}  Rd6 {[%clk 0:00:05]} 47. Kf2 {[%clk 0:00:11]}  Nxd5 {[%clk 0:00:04]} 48. exd5 {[%clk 0:00:11]}  Kf7 {[%clk 0:00:05]} 49. Kf3 {[%clk 0:00:11]}  Kg6 {[%clk 0:00:05]} 50. Ke4 {[%clk 0:00:12]}  Bf8 {[%clk 0:00:06]} 51. Ra6 {[%clk 0:00:12]}  Be7 {[%clk 0:00:06]} 52. Ra7 {[%clk 0:00:11]}  Bf8 {[%clk 0:00:06]} 53. Rb7 {[%clk 0:00:11]}  Bg7 {[%clk 0:00:06]} 54. Rc7 {[%clk 0:00:11]}  Bf8 {[%clk 0:00:07]} 55. Bf2 {[%clk 0:00:10]}  Rd8 {[%clk 0:00:06]} 56. Rc6 {[%clk 0:00:11]}  Rd6 {[%clk 0:00:07]} 57. Bg3 {[%clk 0:00:11]}  Be7 {[%clk 0:00:07]} 58. Bxe5 {[%clk 0:00:11]}  fxe5 {[%clk 0:00:07]} 59. Kxe5 {[%clk 0:00:12]}  Rf6 {[%clk 0:00:07]} 60. Re6 {[%clk 0:00:12]}  Kf7 {[%clk 0:00:06]} 61. Rxf6+ {[%clk 0:00:12]}  Bxf6+ {[%clk 0:00:07]} 62. Kd6 {[%clk 0:00:13]}  Ke8 {[%clk 0:00:06]} 63. Kc7 {[%clk 0:00:12]}  Bd8+ {[%clk 0:00:06]} 64. Kc8 {[%clk 0:00:12]}  Ke7 {[%clk 0:00:06]} 65. Kb7 {[%clk 0:00:09]}  Kd7 {[%clk 0:00:06]} 66. Kb8 {[%clk 0:00:09]}  Bc7+ {[%clk 0:00:04]} 67. Kb7 {[%clk 0:00:09]}  Bd8 {[%clk 0:00:05]} 68. Kb8 {[%clk 0:00:09]}  Kd6 {[%clk 0:00:04]} 69. Kc8 {[%clk 0:00:09]}  Bc7 {[%clk 0:00:05]} 70. Kb7 {[%clk 0:00:10]}  Kd7 {[%clk 0:00:05]} 71. Ka7 {[%clk 0:00:08]}  Kc8 {[%clk 0:00:05]} 72. Ka6 {[%clk 0:00:02]}  Kb8 {[%clk 0:00:05]} 73. d6 {[%clk 0:00:02]}  Bd8 {[%clk 0:00:06]} 74. d7 {[%clk 0:00:00]}  Kc7 {[%clk 0:00:07]} 0-1


[Site "https://www.chess.com"]

[Event "Titled Tuesday Blitz July 25 Late 2023"]
[White "Nakamura, Hikaru"]
[Black "Pranav, V"]
[WhiteFideId "2016192"]
[BlackFideId "25060783"]
[WhiteElo "3265"]
[BlackElo "3021"]
[Result "1/2-1/2"]
[Round "8"]
[TimeControl "180+2"]
[Date "2023.07.25"]
[WhiteClock "0:00:58"]
[BlackClock "0:00:10"]
[Board "2"]

1. e4 {[%clk 0:03:00]}  c5 {[%clk 0:02:59]} 2. Nf3 {[%clk 0:02:55]}  d6 {[%clk 0:02:59]} 3. d4 {[%clk 0:02:54]}  cxd4 {[%clk 0:03:00]} 4. Qxd4 {[%clk 0:02:55]}  Nf6 {[%clk 0:02:54]} 5. Nc3 {[%clk 0:02:53]}  Nc6 {[%clk 0:02:52]} 6. Bb5 {[%clk 0:02:53]}  Bd7 {[%clk 0:02:51]} 7. Bxc6 {[%clk 0:02:53]}  Bxc6 {[%clk 0:02:51]} 8. Bg5 {[%clk 0:02:54]}  e6 {[%clk 0:02:49]} 9. O-O-O {[%clk 0:02:54]}  Be7 {[%clk 0:02:49]} 10. Qd3 {[%clk 0:02:54]}  a6 {[%clk 0:02:44]} 11. Nd4 {[%clk 0:02:54]}  Qc7 {[%clk 0:02:41]} 12. f4 {[%clk 0:02:53]}  Rc8 {[%clk 0:02:38]} 13. Kb1 {[%clk 0:02:50]}  h6 {[%clk 0:02:32]} 14. Bh4 {[%clk 0:02:34]}  Nxe4 {[%clk 0:01:36]} 15. Nxe4 {[%clk 0:02:22]}  Bxe4 {[%clk 0:01:36]} 16. Qxe4 {[%clk 0:02:23]}  Bxh4 {[%clk 0:01:36]} 17. Nf5 {[%clk 0:02:18]}  d5 {[%clk 0:01:08]} 18. Rxd5 {[%clk 0:02:01]}  Kf8 {[%clk 0:00:23]} 19. Nxh4 {[%clk 0:01:23]}  exd5 {[%clk 0:00:22]} 20. Qf5 {[%clk 0:01:23]}  Kg8 {[%clk 0:00:18]} 21. Rd1 {[%clk 0:01:24]}  g6 {[%clk 0:00:11]} 22. Nxg6 {[%clk 0:00:58]}  fxg6 {[%clk 0:00:11]} 23. Qxg6+ {[%clk 0:00:59]}  Qg7 {[%clk 0:00:11]} 24. Qe6+ {[%clk 0:00:58]}  Kh7 {[%clk 0:00:12]} 25. Qf5+ {[%clk 0:00:59]}  Qg6 {[%clk 0:00:10]} 26. Qd7+ {[%clk 0:00:59]}  Qg7 {[%clk 0:00:10]} 27. Qf5+ {[%clk 0:01:00]}  Qg6 {[%clk 0:00:10]} 28. Qd7+ {[%clk 0:00:59]}  Qg7 {[%clk 0:00:10]} 29. Qf5+ {[%clk 0:00:58]} 1/2-1/2


[Site "https://www.chess.com"]

[Event "Titled Tuesday Blitz July 25 Late 2023"]
[White "Martinez Alcantara, Jose Eduardo"]
[Black "Erigaisi Arjun"]
[WhiteFideId "3805662"]
[BlackFideId "35009192"]
[WhiteElo "3006"]
[BlackElo "3092"]
[Result "1-0"]
[Round "8"]
[TimeControl "180+2"]
[Date "2023.07.25"]
[WhiteClock "0:00:06"]
[BlackClock "0:00:16"]
[Board "4"]

1. e4 {[%clk 0:03:00]}  d6 {[%clk 0:02:59]} 2. d4 {[%clk 0:02:59]}  g6 {[%clk 0:03:00]} 3. c3 {[%clk 0:02:59]}  Bg7 {[%clk 0:03:00]} 4. Bd3 {[%clk 0:03:00]}  Nc6 {[%clk 0:02:59]} 5. Nf3 {[%clk 0:03:00]}  e5 {[%clk 0:02:59]} 6. Be3 {[%clk 0:03:00]}  Bg4 {[%clk 0:02:57]} 7. dxe5 {[%clk 0:02:52]}  Nxe5 {[%clk 0:02:53]} 8. Be2 {[%clk 0:02:51]}  Nxf3+ {[%clk 0:02:52]} 9. Bxf3 {[%clk 0:02:52]}  Bxf3 {[%clk 0:02:52]} 10. Qxf3 {[%clk 0:02:53]}  Ne7 {[%clk 0:02:52]} 11. Nd2 {[%clk 0:02:52]}  O-O {[%clk 0:02:52]} 12. O-O {[%clk 0:02:53]}  Nc6 {[%clk 0:02:51]} 13. h3 {[%clk 0:02:52]}  Qd7 {[%clk 0:02:50]} 14. Rfe1 {[%clk 0:02:49]}  Rae8 {[%clk 0:02:51]} 15. Rad1 {[%clk 0:02:49]}  Qe6 {[%clk 0:02:50]} 16. a3 {[%clk 0:02:43]}  a5 {[%clk 0:02:49]} 17. Qe2 {[%clk 0:02:41]}  f5 {[%clk 0:02:40]} 18. exf5 {[%clk 0:02:34]}  Rxf5 {[%clk 0:02:41]} 19. Nf3 {[%clk 0:02:31]}  Qf7 {[%clk 0:02:28]} 20. Nh2 {[%clk 0:02:08]}  Ne5 {[%clk 0:02:17]} 21. Qc2 {[%clk 0:01:59]}  b5 {[%clk 0:02:12]} 22. a4 {[%clk 0:01:54]}  b4 {[%clk 0:02:06]} 23. cxb4 {[%clk 0:01:55]}  axb4 {[%clk 0:02:07]} 24. b3 {[%clk 0:01:53]}  g5 {[%clk 0:01:47]} 25. a5 {[%clk 0:01:30]}  h5 {[%clk 0:01:47]} 26. a6 {[%clk 0:01:28]}  g4 {[%clk 0:01:44]} 27. hxg4 {[%clk 0:01:25]}  hxg4 {[%clk 0:01:45]} 28. a7 {[%clk 0:01:21]}  Rh5 {[%clk 0:01:39]} 29. Qe4 {[%clk 0:01:07]}  d5 {[%clk 0:01:32]} 30. Qf4 {[%clk 0:00:47]}  Rf5 {[%clk 0:01:10]} 31. Qg3 {[%clk 0:00:46]}  Qh5 {[%clk 0:00:54]} 32. Bd4 {[%clk 0:00:29]}  Kf7 {[%clk 0:00:53]} 33. Re3 {[%clk 0:00:20]}  Rh8 {[%clk 0:00:33]} 34. Rde1 {[%clk 0:00:18]}  Nf3+ {[%clk 0:00:27]} 35. gxf3 {[%clk 0:00:09]}  Bxd4 {[%clk 0:00:28]} 36. fxg4 {[%clk 0:00:09]}  Bxe3 {[%clk 0:00:25]} 37. Rxe3 {[%clk 0:00:07]}  Qh7 {[%clk 0:00:20]} 38. gxf5 {[%clk 0:00:06]}  Rg8 {[%clk 0:00:20]} 39. Ng4 {[%clk 0:00:06]}  Qh5 {[%clk 0:00:16]} 40. Qxc7+ {[%clk 0:00:06]} 1-0


[Site "https://www.chess.com"]

[Event "Titled Tuesday Blitz July 25 Late 2023"]
[White "Xiong, Jeffery"]
[Black "Bluebaum, Matthias"]
[WhiteFideId "2047640"]
[BlackFideId "24651516"]
[WhiteElo "2982"]
[BlackElo "3050"]
[Result "1/2-1/2"]
[Round "8"]
[TimeControl "180+2"]
[Date "2023.07.25"]
[WhiteClock "0:00:16"]
[BlackClock "0:00:12"]
[Board "6"]

1. e4 {[%clk 0:03:00]}  e6 {[%clk 0:03:00]} 2. d4 {[%clk 0:03:01]}  d5 {[%clk 0:03:00]} 3. exd5 {[%clk 0:03:02]}  exd5 {[%clk 0:03:01]} 4. Nf3 {[%clk 0:03:02]}  Nc6 {[%clk 0:03:02]} 5. Nc3 {[%clk 0:03:02]}  a6 {[%clk 0:02:57]} 6. Bd3 {[%clk 0:03:02]}  Nb4 {[%clk 0:02:58]} 7. O-O {[%clk 0:02:59]}  Bd6 {[%clk 0:02:58]} 8. Re1+ {[%clk 0:02:57]}  Ne7 {[%clk 0:02:58]} 9. Bf1 {[%clk 0:02:41]}  Bf5 {[%clk 0:02:56]} 10. Re2 {[%clk 0:02:41]}  O-O {[%clk 0:02:51]} 11. h3 {[%clk 0:02:39]}  h6 {[%clk 0:02:45]} 12. a3 {[%clk 0:02:38]}  Nbc6 {[%clk 0:02:45]} 13. Re1 {[%clk 0:02:38]}  Qd7 {[%clk 0:02:39]} 14. Nh4 {[%clk 0:02:34]}  Bh7 {[%clk 0:02:37]} 15. Bd3 {[%clk 0:02:34]}  Bxd3 {[%clk 0:02:28]} 16. Qxd3 {[%clk 0:02:35]}  Rae8 {[%clk 0:02:28]} 17. Bd2 {[%clk 0:02:35]}  Nd8 {[%clk 0:02:08]} 18. Re2 {[%clk 0:02:28]}  c6 {[%clk 0:02:07]} 19. Rae1 {[%clk 0:02:26]}  Ne6 {[%clk 0:01:50]} 20. Nf3 {[%clk 0:01:59]}  Ng6 {[%clk 0:01:39]} 21. g3 {[%clk 0:01:59]}  Nc7 {[%clk 0:01:33]} 22. Kg2 {[%clk 0:01:57]}  Rxe2 {[%clk 0:01:33]} 23. Nxe2 {[%clk 0:01:56]}  Re8 {[%clk 0:01:32]} 24. Nc1 {[%clk 0:01:56]}  Rxe1 {[%clk 0:01:32]} 25. Nxe1 {[%clk 0:01:53]}  Qe7 {[%clk 0:01:24]} 26. Qe2 {[%clk 0:01:49]}  Qxe2 {[%clk 0:01:23]} 27. Nxe2 {[%clk 0:01:50]}  Ne6 {[%clk 0:01:23]} 28. Nd3 {[%clk 0:01:48]}  Ne7 {[%clk 0:01:23]} 29. Bb4 {[%clk 0:01:48]}  Nf5 {[%clk 0:01:16]} 30. g4 {[%clk 0:01:44]}  Nh4+ {[%clk 0:01:16]} 31. Kf1 {[%clk 0:01:42]}  Bc7 {[%clk 0:01:00]} 32. f4 {[%clk 0:01:42]}  f5 {[%clk 0:00:53]} 33. Kf2 {[%clk 0:01:42]}  g5 {[%clk 0:00:49]} 34. Bd2 {[%clk 0:01:40]}  Kf7 {[%clk 0:00:46]} 35. Nc5 {[%clk 0:00:52]}  Nxc5 {[%clk 0:00:39]} 36. dxc5 {[%clk 0:00:53]}  gxf4 {[%clk 0:00:32]} 37. Bxf4 {[%clk 0:00:51]}  Bxf4 {[%clk 0:00:32]} 38. Nxf4 {[%clk 0:00:51]}  fxg4 {[%clk 0:00:32]} 39. hxg4 {[%clk 0:00:52]}  Ng6 {[%clk 0:00:30]} 40. Nxg6 {[%clk 0:00:46]}  Kxg6 {[%clk 0:00:31]} 41. c3 {[%clk 0:00:46]}  a5 {[%clk 0:00:19]} 42. a4 {[%clk 0:00:46]}  Kg5 {[%clk 0:00:11]} 43. Kg3 {[%clk 0:00:43]}  Kf6 {[%clk 0:00:10]} 44. Kf4 {[%clk 0:00:43]}  Kg6 {[%clk 0:00:10]} 45. Kf3 {[%clk 0:00:14]}  Kg5 {[%clk 0:00:11]} 46. Kg3 {[%clk 0:00:15]}  Kf6 {[%clk 0:00:11]} 47. Kf4 {[%clk 0:00:15]}  Kg6 {[%clk 0:00:12]} 48. Kf3 {[%clk 0:00:16]}  Kg5 {[%clk 0:00:12]} 49. Kg3 {[%clk 0:00:16]} 1/2-1/2


[Site "https://www.chess.com"]

[Event "Titled Tuesday Blitz July 25 Late 2023"]
[White "Sjugirov, Sanan"]
[Black "Duda, Jan-Krzysztof"]
[WhiteFideId "4189302"]
[BlackFideId "1170546"]
[WhiteElo "2954"]
[BlackElo "3039"]
[Result "0-1"]
[Round "8"]
[TimeControl "180+2"]
[Date "2023.07.25"]
[WhiteClock "0:00:02"]
[BlackClock "0:00:52"]
[Board "7"]

1. e4 {[%clk 0:03:00]}  c6 {[%clk 0:02:58]} 2. d4 {[%clk 0:03:00]}  d5 {[%clk 0:02:59]} 3. Nc3 {[%clk 0:03:01]}  dxe4 {[%clk 0:02:58]} 4. Nxe4 {[%clk 0:03:02]}  Bf5 {[%clk 0:02:59]} 5. Ng3 {[%clk 0:03:02]}  Bg6 {[%clk 0:03:00]} 6. Nf3 {[%clk 0:03:02]}  e6 {[%clk 0:02:59]} 7. Bd3 {[%clk 0:03:03]}  Bxd3 {[%clk 0:02:57]} 8. Qxd3 {[%clk 0:03:04]}  Nf6 {[%clk 0:02:56]} 9. O-O {[%clk 0:03:04]}  Be7 {[%clk 0:02:56]} 10. Bf4 {[%clk 0:02:59]}  O-O {[%clk 0:02:57]} 11. Rad1 {[%clk 0:02:56]}  a5 {[%clk 0:02:54]} 12. c4 {[%clk 0:02:53]}  a4 {[%clk 0:02:54]} 13. Rfe1 {[%clk 0:02:50]}  Nbd7 {[%clk 0:02:53]} 14. Ne4 {[%clk 0:02:40]}  Nxe4 {[%clk 0:02:51]} 15. Qxe4 {[%clk 0:02:41]}  Re8 {[%clk 0:02:51]} 16. Qc2 {[%clk 0:02:36]}  Qa5 {[%clk 0:02:49]} 17. Ne5 {[%clk 0:02:28]}  Nxe5 {[%clk 0:02:47]} 18. Rxe5 {[%clk 0:02:27]}  Qb6 {[%clk 0:02:40]} 19. Rh5 {[%clk 0:02:11]}  g6 {[%clk 0:02:32]} 20. Rh3 {[%clk 0:02:10]}  Bf6 {[%clk 0:02:31]} 21. Be5 {[%clk 0:02:00]}  Bxe5 {[%clk 0:02:28]} 22. dxe5 {[%clk 0:02:01]}  Qc5 {[%clk 0:02:26]} 23. Qe4 {[%clk 0:01:44]}  Red8 {[%clk 0:02:18]} 24. Rhd3 {[%clk 0:01:42]}  Rxd3 {[%clk 0:02:16]} 25. Rxd3 {[%clk 0:01:42]}  b5 {[%clk 0:02:14]} 26. Rd4 {[%clk 0:01:19]}  Rb8 {[%clk 0:02:10]} 27. h4 {[%clk 0:01:10]}  bxc4 {[%clk 0:02:08]} 28. Rxc4 {[%clk 0:01:10]}  Qd5 {[%clk 0:02:09]} 29. Qf4 {[%clk 0:00:56]}  Rxb2 {[%clk 0:01:59]} 30. Rd4 {[%clk 0:00:55]}  Qa5 {[%clk 0:01:58]} 31. Rxa4 {[%clk 0:00:07]}  Qe1+ {[%clk 0:01:35]} 32. Kh2 {[%clk 0:00:07]}  Rxf2 {[%clk 0:01:32]} 33. Qg3 {[%clk 0:00:06]}  h5 {[%clk 0:01:18]} 34. Rc4 {[%clk 0:00:03]}  Qf1 {[%clk 0:01:05]} 35. Rxc6 {[%clk 0:00:03]}  Rxa2 {[%clk 0:01:04]} 36. Rc8+ {[%clk 0:00:03]}  Kg7 {[%clk 0:01:03]} 37. Qg5 {[%clk 0:00:03]}  Ra1 {[%clk 0:00:53]} 38. Qd8 {[%clk 0:00:01]}  Qg1+ {[%clk 0:00:53]} 39. Kg3 {[%clk 0:00:02]}  Ra3+ {[%clk 0:00:52]} 40. Kf4 {[%clk 0:00:02]}  Qe3# {[%clk 0:00:52]} 0-1


[Site "https://www.chess.com"]

[Event "Titled Tuesday Blitz July 25 Late 2023"]
[White "Bortnyk, Olexandr"]
[Black "Jaracz, Pawel"]
[WhiteFideId "14120828"]
[BlackFideId "1102222"]
[WhiteElo "3023"]
[BlackElo "2724"]
[Result "1-0"]
[Round "8"]
[TimeControl "180+2"]
[Date "2023.07.25"]
[WhiteClock "0:01:57"]
[BlackClock "0:00:21"]
[Board "9"]

1. d4 {[%clk 0:03:00]}  Nf6 {[%clk 0:02:59]} 2. Nc3 {[%clk 0:03:01]}  d5 {[%clk 0:02:56]} 3. Bf4 {[%clk 0:03:01]}  c6 {[%clk 0:02:56]} 4. e3 {[%clk 0:03:02]}  Qb6 {[%clk 0:02:55]} 5. Rb1 {[%clk 0:03:01]}  Bf5 {[%clk 0:02:55]} 6. Nf3 {[%clk 0:03:01]}  Nbd7 {[%clk 0:02:54]} 7. Bd3 {[%clk 0:03:02]}  e6 {[%clk 0:02:53]} 8. Bxf5 {[%clk 0:03:02]}  exf5 {[%clk 0:02:53]} 9. h3 {[%clk 0:03:03]}  Bb4 {[%clk 0:02:40]} 10. O-O {[%clk 0:03:02]}  O-O {[%clk 0:02:39]} 11. Ne2 {[%clk 0:03:02]}  Ne4 {[%clk 0:02:37]} 12. c3 {[%clk 0:03:01]}  Be7 {[%clk 0:02:35]} 13. Qc2 {[%clk 0:03:01]}  Rfe8 {[%clk 0:02:32]} 14. c4 {[%clk 0:02:59]}  dxc4 {[%clk 0:02:26]} 15. Qxc4 {[%clk 0:02:56]}  Ndf6 {[%clk 0:02:20]} 16. Nc3 {[%clk 0:02:53]}  Qb4 {[%clk 0:02:16]} 17. Qd3 {[%clk 0:02:52]}  Rad8 {[%clk 0:02:14]} 18. Be5 {[%clk 0:02:48]}  c5 {[%clk 0:01:52]} 19. Rfd1 {[%clk 0:02:42]}  c4 {[%clk 0:01:48]} 20. Qc2 {[%clk 0:02:42]}  Qa5 {[%clk 0:01:39]} 21. Nxe4 {[%clk 0:02:38]}  fxe4 {[%clk 0:01:33]} 22. Nd2 {[%clk 0:02:39]}  Rc8 {[%clk 0:01:16]} 23. Bxf6 {[%clk 0:02:37]}  gxf6 {[%clk 0:01:16]} 24. Qxe4 {[%clk 0:02:34]}  Qxa2 {[%clk 0:01:15]} 25. Qxb7 {[%clk 0:02:31]}  Rb8 {[%clk 0:01:08]} 26. Qd7 {[%clk 0:02:27]}  Bb4 {[%clk 0:01:03]} 27. Ra1 {[%clk 0:02:21]}  Qxb2 {[%clk 0:00:58]} 28. Nxc4 {[%clk 0:02:13]}  Qc2 {[%clk 0:00:55]} 29. Rdc1 {[%clk 0:02:09]}  Qg6 {[%clk 0:00:50]} 30. Rxa7 {[%clk 0:02:08]}  Rec8 {[%clk 0:00:46]} 31. Rc7 {[%clk 0:02:05]}  Rd8 {[%clk 0:00:33]} 32. Qg4 {[%clk 0:02:04]}  Bf8 {[%clk 0:00:33]} 33. Rc6 {[%clk 0:01:59]}  Rdc8 {[%clk 0:00:22]} 34. Rxc8 {[%clk 0:01:57]}  Qxg4 {[%clk 0:00:21]} 35. Rxf8+ {[%clk 0:01:57]} 1-0


[Site "https://www.chess.com"]

[Event "Titled Tuesday Blitz July 25 Late 2023"]
[White "Zhigalko, Sergei"]
[Black "Andreikin, Dmitry"]
[WhiteFideId "13502956"]
[BlackFideId "4158814"]
[WhiteElo "2889"]
[BlackElo "3033"]
[Result "1/2-1/2"]
[Round "8"]
[TimeControl "180+2"]
[Date "2023.07.25"]
[WhiteClock "0:00:06"]
[BlackClock "0:00:05"]
[Board "10"]

1. e4 {[%clk 0:03:00]}  c5 {[%clk 0:02:59]} 2. Nf3 {[%clk 0:03:00]}  Nc6 {[%clk 0:02:58]} 3. c3 {[%clk 0:03:00]}  Nf6 {[%clk 0:02:52]} 4. e5 {[%clk 0:03:00]}  Nd5 {[%clk 0:02:52]} 5. Bc4 {[%clk 0:03:00]}  e6 {[%clk 0:02:48]} 6. d4 {[%clk 0:03:00]}  cxd4 {[%clk 0:02:47]} 7. cxd4 {[%clk 0:03:01]}  d6 {[%clk 0:02:47]} 8. O-O {[%clk 0:03:00]}  Nb6 {[%clk 0:02:43]} 9. Bd3 {[%clk 0:03:00]}  Nb4 {[%clk 0:02:38]} 10. Bg5 {[%clk 0:02:59]}  Be7 {[%clk 0:02:25]} 11. Bxe7 {[%clk 0:02:57]}  Qxe7 {[%clk 0:02:25]} 12. Nc3 {[%clk 0:02:56]}  Bd7 {[%clk 0:02:13]} 13. Ne4 {[%clk 0:02:49]}  dxe5 {[%clk 0:02:13]} 14. dxe5 {[%clk 0:02:48]}  O-O {[%clk 0:02:12]} 15. Nd6 {[%clk 0:02:30]}  Bc6 {[%clk 0:02:08]} 16. Nd4 {[%clk 0:02:20]}  Rad8 {[%clk 0:01:59]} 17. f4 {[%clk 0:02:02]}  Nc8 {[%clk 0:01:52]} 18. Nxc8 {[%clk 0:01:07]}  Rxc8 {[%clk 0:01:27]} 19. a3 {[%clk 0:00:48]}  Nxd3 {[%clk 0:01:15]} 20. Qxd3 {[%clk 0:00:49]}  Rfd8 {[%clk 0:01:12]} 21. Rac1 {[%clk 0:00:42]}  h6 {[%clk 0:00:51]} 22. Qe3 {[%clk 0:00:38]}  Rd5 {[%clk 0:00:47]} 23. f5 {[%clk 0:00:28]}  Qg5 {[%clk 0:00:24]} 24. Qxg5 {[%clk 0:00:27]}  hxg5 {[%clk 0:00:25]} 25. Nxc6 {[%clk 0:00:27]}  Rxc6 {[%clk 0:00:23]} 26. Rxc6 {[%clk 0:00:26]}  bxc6 {[%clk 0:00:24]} 27. fxe6 {[%clk 0:00:27]}  fxe6 {[%clk 0:00:24]} 28. Re1 {[%clk 0:00:25]}  Rb5 {[%clk 0:00:15]} 29. Rc1 {[%clk 0:00:20]}  c5 {[%clk 0:00:09]} 30. a4 {[%clk 0:00:15]}  Rxb2 {[%clk 0:00:04]} 31. Rxc5 {[%clk 0:00:15]}  Rb7 {[%clk 0:00:02]} 32. Ra5 {[%clk 0:00:07]}  Kf7 {[%clk 0:00:02]} 33. Kf2 {[%clk 0:00:07]}  Kg6 {[%clk 0:00:02]} 34. g4 {[%clk 0:00:08]}  Rb2+ {[%clk 0:00:03]} 35. Kg3 {[%clk 0:00:08]}  Rb3+ {[%clk 0:00:03]} 36. Kg2 {[%clk 0:00:08]}  Rb2+ {[%clk 0:00:04]} 37. Kg3 {[%clk 0:00:08]}  Rb3+ {[%clk 0:00:04]} 38. Kg2 {[%clk 0:00:06]}  Rb2+ {[%clk 0:00:05]} 39. Kg3 {[%clk 0:00:06]} 1/2-1/2


[Site "https://www.chess.com"]